lending/lending_fUSD_20241014
["ID","MTS","AMOUNT","RATE_DAILY","PERIOD"]
[340255683,1728924643557,-500.0,0.00021917,2]
[340255684,1728924643566,-500.0,0.00021917,2]
[340255685,1728924643577,-500.0,0.00021917,2]
[340255686,1728924643587,-500.0,0.00021917,2]
[340255687,1728924643598,-317.32808114,0.00021917,2]
[340255688,1728924643608,-500.0,0.00021917,2]
[340255689,1728924643619,-500.0,0.00021917,2]
[340255690,1728924643629,-500.0,0.00021917,2]
[340255691,1728924643639,-500.0,0.00021917,2]
[340255692,1728924643649,-500.0,0.00021917,2]
[340255693,1728924643659,-500.0,0.00021917,2]
[340255694,1728924643670,-500.0,0.00021917,2]
[340255695,1728924643680,-500.0,0.00021917,2]
[340255696,1728924643690,-500.0,0.00021917,2]
[340255697,1728924643700,-500.0,0.00021917,2]
[340255698,1728924643710,-629.61136384,0.00021917,2]
[340255699,1728924643720,-527.3082417,0.00021917,2]
[340255700,1728924643730,-200.0,0.00021917,2]
[340255701,1728924643740,-200.0,0.00021917,2]
[340255702,1728924643750,-200.0,0.00021917,2]
[340255703,1728924643760,-200.0,0.00021917,2]
[340255704,1728924643770,-200.0,0.00021917,2]
[340255705,1728924643781,-200.0,0.00021917,2]
[340255706,1728924643791,-200.0,0.00021917,2]
[340255707,1728924643801,-200.0,0.00021917,2]
[340255708,1728924643812,-200.0,0.00021917,2]
[340255709,1728924643822,-200.0,0.00021917,2]
[340255710,1728924643832,-200.0,0.00021917,2]
[340255711,1728924643843,-500.0,0.00021917,2]
[340255712,1728924643854,-500.0,0.00021917,2]
[340255713,1728924643864,-500.0,0.00021917,2]
[340255714,1728924643874,-500.0,0.00021917,2]
[340255715,1728924643884,-500.0,0.00021917,2]
[340255716,1728924643895,-500.0,0.00021917,2]
[340255717,1728924643905,-500.0,0.00021917,2]
[340255718,1728924643915,-354.46259814,0.00021917,2]
[340255719,1728924643927,-500.0,0.00021917,2]
[340255720,1728924643937,-500.0,0.00021917,2]
[340255721,1728924643947,-333.70289852,0.00021917,2]
[340255722,1728924643957,-1008.39,0.00021917,2]
[340255723,1728924643967,-1008.39,0.00021917,2]
[340255724,1728924643977,-1008.39,0.00021917,2]
[340255725,1728924643987,-1008.39,0.00021917,2]
[340255726,1728924643996,-1008.39,0.00021917,2]
[340255727,1728924644006,-1008.39,0.00021917,2]
[340255728,1728924644016,-1008.39,0.00021917,2]
[340255729,1728924644026,-1008.39,0.00021917,2]
[340255730,1728924644036,-1008.39,0.00021917,2]
[340255731,1728924644045,-1008.39,0.00021917,2]
[340255732,1728924644056,-1008.39,0.00021917,2]
[340255733,1728924644065,-500.0,0.00021917,2]
[340255734,1728924644075,-500.0,0.00021917,2]
[340255735,1728924644085,-500.0,0.00021917,2]
[340255736,1728924644102,-500.0,0.00021917,2]
[340255737,1728924644111,-500.0,0.00021917,2]
[340255738,1728924644121,-500.0,0.00021917,2]
[340255739,1728924644131,-500.0,0.00021917,2]
[340255740,1728924644140,-500.0,0.00021917,2]
[340255741,1728924644150,-500.0,0.00021917,2]
[340255742,1728924644160,-189.04624093,0.00021917,2]
[340255743,1728924644170,-595.25,0.00021917,2]
[340255744,1728924644180,-595.25,0.00021917,2]
[340255745,1728924644190,-595.25,0.00021917,2]
[340255746,1728924644200,-595.25,0.00021917,2]
[340255747,1728924644211,-966.79,0.00021917,2]
[340255748,1728924644220,-595.25,0.00021917,2]
[340255749,1728924644230,-595.25,0.00021917,2]
[340255750,1728924644241,-966.79,0.00021917,2]
[340255751,1728924644251,-595.25,0.00021917,2]
[340255752,1728924644261,-966.79,0.00021917,2]
[340255753,1728924644271,-595.25,0.00021917,2]
[340255754,1728924644281,-966.79,0.00021917,2]
[340255755,1728924644291,-595.25,0.00021917,2]
[340255756,1728924644301,-966.79,0.00021917,2]
[340255757,1728924644311,-595.25,0.00021917,2]
[340255758,1728924644322,-966.79,0.00021917,2]
[340255759,1728924644332,-595.25,0.00021917,2]
[340255760,1728924644342,-966.79,0.00021917,2]
[340255761,1728924644352,-966.79,0.00021917,2]
[340255762,1728924644362,-966.79,0.00021917,2]
[340255763,1728924644372,-966.79,0.00021917,2]
[340255764,1728924644382,-966.79,0.00021917,2]
[340255765,1728924644393,-500.0,0.00021917,2]
[340255766,1728924644403,-500.0,0.00021917,2]
[340255767,1728924644581,-500.0,0.00021917,2]
[340255768,1728924644595,-500.0,0.00021917,2]
[340255769,1728924644605,-354.79331083,0.00021917,2]
[340255770,1728924644614,-151.0,0.00021917,2]
[340255771,1728924644623,-825.93,0.00021917,2]
[340255772,1728924644632,-825.93,0.00021917,2]
[340255773,1728924644641,-825.93,0.00021917,2]
[340255774,1728924644650,-825.93,0.00021917,2]
[340255775,1728924644659,-825.93,0.00021917,2]
[340255776,1728924644668,-825.93,0.00021917,2]
[340255777,1728924644677,-825.93,0.00021917,2]
[340255778,1728924644686,-825.93,0.00021917,2]
[340255779,1728924644695,-825.93,0.00021917,2]
[340255780,1728924644704,-825.93,0.00021917,2]
[340255781,1728924644714,-439.72410536,0.00021917,2]
[340255782,1728924644723,-500.0,0.00021917,2]
[340255783,1728924644732,-632.9092935,0.00021917,2]
[340255784,1728924644741,-315.26146237,0.00021917,2]
[340255785,1728924644751,-500.0,0.00021917,2]
[340255786,1728924644760,-500.0,0.00021917,2]
[340255787,1728924644769,-500.0,0.00021917,2]
[340255788,1728924644779,-500.0,0.00021917,2]
[340255789,1728924644788,-500.0,0.00021917,2]
[340255790,1728924644797,-500.0,0.00021917,2]
[340255791,1728924644806,-459.15675675,0.00021917,2]
[340255792,1728924644816,-337.75324529,0.00021917,2]
[340255793,1728924644826,-1245.0,0.00021917,2]
[340255794,1728924644835,-1245.0,0.00021917,2]
[340255795,1728924644845,-1245.0,0.00021917,2]
[340255796,1728924644854,-500.0,0.00021917,2]
[340255797,1728924644864,-1245.0,0.00021917,2]
[340255798,1728924644873,-500.0,0.00021917,2]
[340255799,1728924644883,-1245.0,0.00021917,2]
[340255800,1728924644892,-500.0,0.00021917,2]
[340255801,1728924644901,-1245.0,0.00021917,2]
[340255802,1728924644910,-1245.0,0.00021917,2]
[340255803,1728924644919,-500.0,0.00021917,2]
[340255804,1728924644928,-1245.0,0.00021917,2]
[340255805,1728924644937,-500.0,0.00021917,2]
[340255806,1728924644946,-1245.0,0.00021917,2]
[340255807,1728924644956,-500.0,0.00021917,2]
[340255808,1728924644965,-1245.0,0.00021917,2]
[340255809,1728924644975,-500.0,0.00021917,2]
[340255810,1728924644984,-1245.0,0.00021917,2]
[340255811,1728924644993,-500.0,0.00021917,2]
[340255812,1728924645001,-232.66602677,0.00021917,2]
[340255813,1728924645011,-500.0,0.00021917,2]
[340255814,1728924645019,-214.3035978,0.00021917,2]
[340255815,1728924645028,-500.0,0.00021917,2]
[340255816,1728924645037,-500.0,0.00021917,2]
[340255817,1728924645046,-500.0,0.00021917,2]
[340255818,1728924645055,-500.0,0.00021917,2]
[340255819,1728924645064,-500.0,0.00021917,2]
[340255820,1728924645073,-500.0,0.00021917,2]
[340255821,1728924645082,-546.80218807,0.00021917,2]
[340255822,1728924645091,-500.0,0.00021917,2]
[340255823,1728924645100,-643.36293808,0.00021917,2]
[340255824,1728924645109,-507.87121909,0.00021917,2]
[340255825,1728924645117,-513.80048171,0.00021917,2]
[340255826,1728924645127,-500.0,0.00021917,2]
[340255827,1728924645136,-500.0,0.00021917,2]
[340255828,1728924645145,-500.0,0.00021917,2]
[340255829,1728924645154,-500.0,0.00021917,2]
[340255830,1728924645163,-500.0,0.00021917,2]
[340255831,1728924645172,-500.0,0.00021917,2]
[340255832,1728924645182,-500.0,0.00021917,2]
[340255833,1728924645191,-500.0,0.00021917,2]
[340255834,1728924645200,-500.0,0.00021917,2]
[340255835,1728924645209,-500.0,0.00021917,2]
[340255836,1728924645218,-419.30883443,0.00021917,2]
[340255837,1728924645228,-500.0,0.00021917,2]
[340255838,1728924645237,-500.0,0.00021917,2]
[340255839,1728924645247,-2880.3,0.00021917,2]
[340255840,1728924645256,-2880.3,0.00021917,2]
[340255841,1728924645266,-500.0,0.00021917,2]
[340255842,1728924645275,-500.0,0.00021917,2]
[340255843,1728924645284,-2880.3,0.00021917,2]
[340255844,1728924645294,-500.0,0.00021917,2]
[340255845,1728924645303,-417.59788238,0.00021917,2]
[340255846,1728924645312,-2880.3,0.00021917,2]
[340255847,1728924645322,-500.0,0.00021917,2]
[340255848,1728924645331,-2880.3,0.00021917,2]
[340255849,1728924645342,-500.0,0.00021917,2]
[340255850,1728924645351,-2880.3,0.00021917,2]
[340255851,1728924645360,-218.39403603,0.00021917,2]
[340255853,1728924645369,-768.25,0.00021917,2]
[340255854,1728924645378,-2880.3,0.00021917,2]
[340255855,1728924645388,-768.25,0.00021917,2]
[340255856,1728924645397,-2880.3,0.00021917,2]
[340255857,1728924645406,-768.25,0.00021917,2]
[340255858,1728924645415,-2880.3,0.00021917,2]
[340255859,1728924645425,-2880.3,0.00021917,2]
[340255860,1728924645438,-768.25,0.00021917,2]
[340255861,1728924645447,-768.25,0.00021917,2]
[340255862,1728924645456,-768.25,0.00021917,2]
[340255863,1728924645466,-768.25,0.00021917,2]
[340255864,1728924645476,-768.25,0.00021917,2]
[340255865,1728924645485,-768.25,0.00021917,2]
[340255866,1728924645494,-768.25,0.00021917,2]
[340255867,1728924645503,-768.25,0.00021917,2]
[340255868,1728924645514,-506.51790419,0.00021917,2]
[340255869,1728924645523,-503.98524547,0.00021917,2]
[340255870,1728924645532,-551.65112738,0.00021917,2]
[340255871,1728924645541,-500.0,0.00021917,2]
[340255872,1728924645550,-500.0,0.00021917,2]
[340255873,1728924645559,-500.0,0.00021917,2]
[340255874,1728924645568,-500.0,0.00021917,2]
[340255875,1728924645578,-500.0,0.00021917,2]
[340255876,1728924645587,-500.0,0.00021917,2]
[340255877,1728924645597,-500.0,0.00021917,2]
[340255878,1728924645606,-221.59,0.00021918,2]
[340255879,1728924645615,-179.66,0.00021918,2]
[340255880,1728924645624,-660.79395,0.00022,5]
[340255881,1728924645634,-850.0,0.00022,2]
[340255882,1728924645643,-1137.63738606,0.00022039,2]
[340255883,1728924645652,-1063.7660706,0.00022039,2]
[340255884,1728924645662,-163.94,0.00022137,30]
[340255885,1728924645671,-168.43382,0.00022274,2]
[340255886,1728924645680,-150.0,0.00022284,2]
[340255887,1728924645689,-150.0,0.00022332,2]
[340255888,1728924645699,-150.0,0.00022375,2]
[340255889,1728924645708,-570.62,0.000224,31]
[340255890,1728924645718,-570.62,0.000224,31]
[340255891,1728924645727,-570.62,0.000224,31]
[340255892,1728924645736,-570.62,0.000224,31]
[340255893,1728924645745,-570.62,0.000224,31]
[340255894,1728924645755,-570.62,0.000224,31]
[340255895,1728924645764,-570.62,0.000224,31]
[340255896,1728924645774,-570.62,0.000224,31]
[340255897,1728924645783,-570.62,0.000224,31]
[340255898,1728924645792,-570.62,0.000224,31]
[340255899,1728924645801,-570.62,0.000224,31]
[340255900,1728924645810,-570.62,0.000224,31]
[340255901,1728924645819,-570.62,0.000224,31]
[340255902,1728924645829,-570.62,0.000224,31]
[340255903,1728924645838,-570.62,0.000224,31]
[340255904,1728924645849,-570.62,0.000224,31]
[340255905,1728924645859,-560.85597523,0.00022461,2]
[340255906,1728924645869,-500.0,0.00022461,2]
[340255907,1728924645878,-500.0,0.00022461,2]
[340255908,1728924645888,-500.0,0.00022477,2]
[340255909,1728924645897,-500.0,0.00022477,2]
[340255910,1728924645906,-500.0,0.00022477,2]
[340255911,1728924645916,-500.0,0.00022477,2]
[340255912,1728924645925,-630.51465063,0.00022478,2]
[340255913,1728924645935,-500.0,0.00022478,2]
[340255914,1728924645944,-150.0,0.0002248,2]
[340255915,1728924645953,-711.6,0.00022482,2]
[340255916,1728924645963,-990.36,0.00022482,2]
[340255917,1728924645972,-500.0,0.00022482,2]
[340255918,1728924645981,-200.0,0.00022482,2]
[340255919,1728924645991,-1008.39,0.00022482,2]
[340255920,1728924646000,-595.25,0.00022482,2]
[340255921,1728924646010,-966.79,0.00022482,2]
[340255922,1728924646019,-500.0,0.00022482,2]
[340255923,1728924646028,-768.25,0.00022482,2]
[340255924,1728924646038,-428.9625232,0.00022483,2]
[340255925,1728924646047,-10786.0746436,0.00022483,2]
[340255926,1728924646056,-1245.0,0.00022483,2]
[340255927,1728924646065,-1252.2847876,0.00022483,2]
[340255928,1728924646074,-416.8727819,0.00022484,2]
[340255929,1728924646083,-404.7830406,0.00022484,2]
[340255930,1728924646094,-392.6932993,0.00022484,2]
[340255931,1728924646103,-380.603558,0.00022484,2]
[340255932,1728924646113,-10482.083397,0.00022484,2]
[340255933,1728924646122,-10178.0921503,0.00022484,2]
[340255934,1728924646131,-9874.1009036,0.00022484,2]
[340255935,1728924646141,-9570.1096569,0.00022484,2]
[340255936,1728924646151,-1207.9092567,0.00022484,2]
[340255937,1728924646160,-1163.5337257,0.00022484,2]
[340255938,1728924646170,-1119.1581948,0.00022484,2]
[340255939,1728924646180,-1074.7826639,0.00022484,2]
[340255940,1728924646189,-600.0,0.00022484,8]
[340255941,1728924646198,-600.0,0.00022484,8]
[340255942,1728924646207,-600.0,0.00022484,8]
[340255943,1728924646217,-600.0,0.00022484,8]
[340255944,1728924646226,-600.0,0.00022484,8]
[340255945,1728924646236,-600.0,0.00022484,8]
[340255946,1728924646245,-600.0,0.00022484,8]
[340255947,1728924646255,-600.0,0.00022484,8]
[340255948,1728924646265,-600.0,0.00022484,8]
[340255949,1728924646274,-600.0,0.00022484,8]
[340255950,1728924646284,-500.0,0.00022487,2]
[340255951,1728924646293,-177.2291521,0.00022488,2]
[340255952,1728924646302,-150.0,0.00022488,2]
[340255953,1728924646312,-354.79627757,0.00022489,2]
[340255954,1728924646321,-309.46,0.00022491,2]
[340255955,1728924646330,-11145.24195112,0.00022498,4]
[340255956,1728924646339,-825.93,0.00022498,2]
[340255957,1728924646350,-2880.3,0.00022498,2]
[340255958,1728924646360,-500.0,0.00022499,2]
[340255959,1728924646369,-500.0,0.00022499,2]
[340255960,1728924646379,-500.0,0.00022499,2]
[340255961,1728924646388,-711.6,0.00022499,2]
[340255962,1728924646398,-990.36,0.00022499,2]
[340255963,1728924646408,-500.0,0.00022499,2]
[340255964,1728924646417,-500.0,0.00022499,2]
[340255965,1728924646428,-200.0,0.00022499,2]
[340255966,1728924646441,-1008.39,0.00022499,2]
[340255967,1728924646450,-595.25,0.00022499,2]
[340255968,1728924646460,-966.79,0.00022499,2]
[340255969,1728924646470,-1245.0,0.00022499,2]
[340255970,1728924646480,-500.0,0.00022499,2]
[340255971,1728924646489,-768.25,0.00022499,2]
[340255972,1728924646498,-50000.0,0.000225,14]
[340255973,1728924646510,-50000.0,0.000225,10]
[340255974,1728924646519,-50000.0,0.000225,16]
[340255975,1728924646533,-50000.0,0.000225,12]
[340255976,1728924646542,-152.0,0.000225,2]
[340255977,1728924646551,-10000.0,0.000225,5]
[340255978,1728924646561,-416.0,0.000225,5]
[340255979,1728924646570,-209.0,0.000225,2]
[340255980,1728924646580,-209.0,0.000225,2]
[340255981,1728924646589,-209.0,0.000225,2]
[340255982,1728924646600,-209.0,0.000225,2]
[340255983,1728924646609,-209.0,0.000225,2]
[340255984,1728924646619,-209.0,0.000225,2]
[340255985,1728924646629,-150.0,0.000225,10]
[340255986,1728924646638,-3000.0,0.000225,2]
[340255987,1728924646648,-151.0,0.000225,7]
[340255988,1728924646658,-283.105916,0.000225,7]
[340255989,1728924646670,-283.105916,0.000225,7]
[340255990,1728924646680,-151.0,0.000225,7]
[340255991,1728924646690,-1255.3243,0.000225,2]
[340255992,1728924646699,-1255.3243,0.000225,2]
[340255993,1728924646708,-151.0,0.000225,7]
[340255994,1728924646718,-151.0,0.000225,7]
[340255995,1728924646727,-198.0,0.000225,5]
[340255996,1728924646737,-151.0,0.000225,7]
[340255997,1728924646747,-1575.970389,0.000225,7]
[340255998,1728924646757,-1575.970389,0.000225,7]
[340255999,1728924646767,-151.0,0.000225,7]
[340256000,1728924646777,-280.0,0.00023,2]
[340256001,1728924646787,-320.0,0.00023,10]
[340256002,1728924646798,-200.0,0.00023,2]
[340256003,1728924646807,-150.0,0.00023,11]
[340256004,1728924646817,-313.84,0.00023,2]
[340256005,1728924646827,-998.86,0.00023,2]
[340256006,1728924646837,-265.26809142,0.0002301,2]
[340256007,1728924646847,-278.12,0.000231,14]
[340256008,1728924646857,-9266.1184102,0.00023204,2]
[340256009,1728924646867,-1030.4071329,0.00023204,2]
[340256010,1728924646876,-825.93,0.00023219,2]
[340256011,1728924646887,-2880.3,0.00023219,2]
[340256012,1728924646897,-563.1434197,0.0002322,2]
[340256013,1728924646906,-500.0,0.0002322,2]
[340256014,1728924646916,-500.0,0.0002322,2]
[340256015,1728924646925,-500.0,0.0002322,2]
[340256016,1728924646934,-500.0,0.0002322,2]
[340256017,1728924646943,-500.0,0.0002322,2]
[340256018,1728924646953,-500.0,0.0002322,2]
[340256019,1728924646963,-500.0,0.0002322,2]
[340256020,1728924646973,-500.0,0.0002322,2]
[340256021,1728924646984,-500.0,0.0002322,2]
[340256022,1728924646994,-500.0,0.0002322,2]
[340256023,1728924647004,-500.0,0.0002322,2]
[340256024,1728924647014,-500.0,0.0002322,2]
[340256025,1728924647023,-500.0,0.0002322,2]
[340256026,1728924647033,-500.0,0.0002322,2]
[340256027,1728924647043,-500.0,0.0002322,2]
[340256028,1728924647052,-500.0,0.0002322,2]
[340256029,1728924647062,-500.0,0.0002322,2]
[340256030,1728924647073,-500.0,0.0002322,2]
[340256031,1728924647083,-500.0,0.0002322,2]
[340256032,1728924647092,-500.0,0.0002322,2]
[340256033,1728924647106,-500.0,0.0002322,2]
[340256034,1728924647116,-500.0,0.0002322,2]
[340256035,1728924647125,-500.0,0.0002322,2]
[340256036,1728924647135,-500.0,0.0002322,2]
[340256037,1728924647144,-500.0,0.0002322,2]
[340256038,1728924647154,-500.0,0.0002322,2]
[340256039,1728924647164,-500.0,0.0002322,2]
[340256040,1728924647175,-500.0,0.0002322,2]
[340256041,1728924647185,-500.0,0.0002322,2]
[340256042,1728924647196,-500.0,0.0002322,2]
[340256043,1728924647206,-500.0,0.0002322,2]
[340256044,1728924647216,-500.0,0.0002322,2]
[340256045,1728924647226,-500.0,0.0002322,2]
[340256046,1728924647236,-500.0,0.0002322,2]
[340256047,1728924647245,-500.0,0.0002322,2]
[340256048,1728924647255,-500.0,0.0002322,2]
[340256049,1728924647264,-500.0,0.0002322,2]
[340256050,1728924647274,-500.0,0.0002322,2]
[340256051,1728924647284,-500.0,0.0002322,2]
[340256052,1728924647293,-500.0,0.0002322,2]
[340256053,1728924647303,-500.0,0.0002322,2]
[340256054,1728924647312,-500.0,0.0002322,2]
[340256055,1728924647322,-500.0,0.0002322,2]
[340256056,1728924647331,-500.0,0.0002322,2]
[340256057,1728924647341,-500.0,0.0002322,2]
[340256058,1728924647352,-500.0,0.0002322,2]
[340256059,1728924647362,-500.0,0.0002322,2]
[340256060,1728924647371,-500.0,0.0002322,2]
[340256061,1728924647381,-500.0,0.0002322,2]
[340256062,1728924647391,-500.0,0.0002322,2]
[340256063,1728924647401,-500.0,0.0002322,2]
[340256064,1728924647411,-500.0,0.0002322,2]
[340256065,1728924647421,-500.0,0.0002322,2]
[340256066,1728924647433,-500.0,0.0002322,2]
[340256067,1728924647443,-500.0,0.0002322,2]
[340256068,1728924647453,-500.0,0.0002322,2]
[340256069,1728924647463,-500.0,0.0002322,2]
[340256070,1728924647473,-500.0,0.0002322,2]
[340256071,1728924647484,-1622.40187426,0.00023402,2]
[340256072,1728924647494,-150.0,0.000235,11]
[340256073,1728924647507,-705.63,0.00023518,2]
[340256074,1728924647517,-368.5138167,0.0002354,2]
[340256075,1728924647527,-968.06639262,0.00024,2]
[340256076,1728924647537,-900.0,0.00024,2]
[340256077,1728924647547,-250.322175,0.00024,12]
[340256078,1728924647556,-500.0,0.0002403,30]
[340256079,1728924647567,-4067.43290035,0.0002408,2]
[340256080,1728924647576,-313.84,0.00024085,2]
[340256081,1728924647586,-399.7081104,0.0002421,2]
[340256082,1728924647598,-3504.37440532,0.0002421,2]
[340256083,1728924647608,-1225.29619123,0.0002425,2]
[340256084,1728924647717,-483.9694246,0.0002439,30]
[340256085,1728924647749,-335.71492403,0.0002442,2]
[340256086,1728924647759,-342.84699528,0.00024657,2]
[340256087,1728924647769,-375.0,0.00024657,2]
[340256088,1728924647779,-500.0,0.00024657,2]
[340256089,1728924647789,-500.0,0.00024657,2]
[340256090,1728924647799,-237.68766349,0.00024657,2]
[340256091,1728924647809,-233.35080609,0.000247,2]
[340256092,1728924647818,-300.0,0.000247,2]
[340256093,1728924647829,-998.86,0.00024795,2]
[340256094,1728924647838,-278.12,0.000249,14]
[340256095,1728924647851,-1622.40187426,0.000249,2]
[340256096,1728924647865,-306.5329544,0.00024998,2]
[340256097,1728924647875,-500.0,0.00024998,2]
[340256098,1728924647885,-500.0,0.00024998,2]
[340256099,1728924647898,-711.6,0.00024998,2]
[340256100,1728924647908,-990.36,0.00024998,2]
[340256101,1728924647918,-500.0,0.00024998,2]
[340256102,1728924647928,-500.0,0.00024998,2]
[340256103,1728924647938,-200.0,0.00024998,2]
[340256104,1728924647948,-1008.39,0.00024998,2]
[340256105,1728924647959,-595.25,0.00024998,2]
[340256106,1728924647967,-966.79,0.00024998,2]
[340256107,1728924647977,-1245.0,0.00024998,2]
[340256108,1728924647987,-335.67070651,0.00024998,2]
[340256109,1728924647996,-768.25,0.00024998,2]
[340256110,1728924648006,-500.0,0.00024999,2]
[340256111,1728924648016,-500.0,0.00024999,2]
[340256112,1728924648025,-500.0,0.00024999,2]
[340256113,1728924648035,-399.00273498,0.00024999,2]
[340256114,1728924648044,-500.0,0.00024999,2]
[340256115,1728924648054,-500.0,0.00024999,2]
[340256116,1728924648063,-500.0,0.00024999,2]
[340256117,1728924648073,-585.8297421,0.00024999,2]
[340256118,1728924648082,-283.105916,0.00024999,7]
[340256119,1728924648091,-283.105916,0.00024999,7]
[340256120,1728924648108,-151.0,0.00024999,7]
[340256121,1728924648117,-151.0,0.00024999,7]
[340256122,1728924648127,-711.6,0.00024999,2]
[340256123,1728924648136,-711.6,0.00024999,2]
[340256124,1728924648146,-711.6,0.00024999,2]
[340256125,1728924648155,-711.6,0.00024999,2]
[340256126,1728924648168,-711.6,0.00024999,2]
[340256127,1728924648178,-711.6,0.00024999,2]
[340256128,1728924648188,-711.6,0.00024999,2]
[340256129,1728924648198,-711.6,0.00024999,2]
[340256130,1728924648208,-711.6,0.00024999,2]
[340256131,1728924648217,-711.68984188,0.00024999,2]
[340256132,1728924648227,-151.0,0.00024999,7]
[340256133,1728924648236,-151.0,0.00024999,7]
[340256134,1728924648246,-1575.970389,0.00024999,7]
[340256135,1728924648256,-1575.970389,0.00024999,7]
[340256136,1728924648265,-990.36,0.00024999,2]
[340256137,1728924648274,-990.36,0.00024999,2]
[340256138,1728924648283,-990.36,0.00024999,2]
[340256139,1728924648293,-990.36,0.00024999,2]
[340256140,1728924648302,-990.36,0.00024999,2]
[340256141,1728924648311,-990.36,0.00024999,2]
[340256142,1728924648321,-990.36,0.00024999,2]
[340256143,1728924648330,-990.36,0.00024999,2]
[340256144,1728924648339,-990.36,0.00024999,2]
[340256145,1728924648351,-990.49849873,0.00024999,2]
[340256146,1728924648361,-500.0,0.00024999,2]
[340256147,1728924648371,-500.0,0.00024999,2]
[340256148,1728924648381,-500.0,0.00024999,2]
[340256149,1728924648391,-466.91312631,0.00024999,2]
[340256150,1728924648400,-500.0,0.00024999,2]
[340256151,1728924648410,-500.0,0.00024999,2]
[340256152,1728924648420,-500.0,0.00024999,2]
[340256153,1728924648429,-500.0,0.00024999,2]
[340256154,1728924648442,-500.0,0.00024999,2]
[340256155,1728924648452,-500.0,0.00024999,2]
[340256156,1728924648461,-500.0,0.00024999,2]
[340256157,1728924648471,-500.0,0.00024999,2]
[340256158,1728924648482,-368.88909436,0.00024999,2]
[340256159,1728924648491,-200.0,0.00024999,2]
[340256160,1728924648500,-200.0,0.00024999,2]
[340256161,1728924648509,-200.0,0.00024999,2]
[340256162,1728924648519,-200.0,0.00024999,2]
[340256163,1728924648529,-200.0,0.00024999,2]
[340256164,1728924648538,-200.0,0.00024999,2]
[340256165,1728924648547,-201.49110727,0.00024999,2]
[340256166,1728924648557,-1008.39,0.00024999,2]
[340256167,1728924648566,-1008.39,0.00024999,2]
[340256168,1728924648575,-1008.39,0.00024999,2]
[340256169,1728924648584,-1008.39,0.00024999,2]
[340256170,1728924648593,-1008.39,0.00024999,2]
[340256171,1728924648603,-1008.39,0.00024999,2]
[340256172,1728924648613,-1008.39,0.00024999,2]
[340256173,1728924648622,-1008.39,0.00024999,2]
[340256174,1728924648631,-1008.39,0.00024999,2]
[340256175,1728924648640,-1008.59309223,0.00024999,2]
[340256176,1728924648650,-595.25,0.00024999,2]
[340256177,1728924648659,-595.25,0.00024999,2]
[340256178,1728924648669,-595.25,0.00024999,2]
[340256179,1728924648679,-595.25,0.00024999,2]
[340256180,1728924648688,-595.25,0.00024999,2]
[340256181,1728924648698,-595.25,0.00024999,2]
[340256182,1728924648707,-966.79,0.00024999,2]
[340256183,1728924648717,-966.79,0.00024999,2]